bitfinex/quotes_ETHUSD_20250702
["timestamp","ask_amount","ask_price","bid_price","bid_amount"]
[1751481484437,0.01,2577.0,2576.9,22.75381134]
[1751481484745,0.01,2577.0,2576.9,26.6344431]
[1751481484912,0.01,2577.0,2576.9,31.3244431]
[1751481485115,0.01,2577.0,2576.9,27.44381134]
[1751481485730,0.01,2577.0,2576.9,31.3244431]
[1751481486342,0.01,2577.0,2576.9,17.37381134]
[1751481486544,0.01,2577.0,2576.9,14.75]
[1751481486845,0.01,2577.0,2576.9,6.701]
[1751481487139,0.01,2577.0,2576.9,14.75]
[1751481487512,0.01,2577.0,2576.9,4.69]
[1751481487712,0.7788,2577.0,2576.9,12.737]
[1751481488338,0.7788,2577.0,2576.9,8.053]
[1751481489419,0.7788,2577.0,2576.6,0.1936]
[1751481489623,0.7788,2577.0,2576.9,2.011]
[1751481491143,0.7788,2577.0,2576.9,10.062]
[1751481492316,0.01,2577.0,2576.9,11.0682]
[1751481493255,0.01,2577.0,2576.9,19.0572]
[1751481493461,0.01,2577.0,2576.9,25.13543176]
[1751481493754,0.01,2578.1,2577.5,10.0]
[1751481493931,0.01,2578.1,2577.7,10.0]
[1751481494131,0.01,2578.1,2578.0,13.87897595]
[1751481494323,0.01,2578.1,2578.0,21.93997595]
[1751481494965,0.78153354,2579.5,2578.3,13.18276558]
[1751481495168,0.78153354,2580.1,2578.6,3.87796123]
[1751481495330,10.78153354,2580.3,2578.9,3.87759134]
[1751481495531,10.78153354,2580.3,2578.7,10.083]
[1751481495532,10.0,2579.8,2579.0,8.072]
[1751481495755,10.0,2580.4,2579.0,8.072]
[1751481496058,0.77520177,2580.3,2579.0,8.072]
[1751481496247,0.77520177,2580.3,2579.1,13.18276558]
[1751481496439,0.77520177,2580.7,2579.2,10.079]
[1751481496638,0.889055,2579.4,2578.8,10.0]
[1751481496836,0.889055,2579.4,2578.7,13.18276558]
[1751481496837,0.889055,2579.4,2578.7,3.87780462]
[1751481497028,0.889055,2579.4,2578.8,20.083]
[1751481497227,0.889055,2579.4,2578.9,2.01]
[1751481497558,0.889055,2579.4,2579.0,8.073]
[1751481498733,0.889055,2579.4,2578.8,3.87775809]
[1751481498940,0.889055,2579.4,2579.1,2.01]
[1751481499141,0.215955,2579.4,2579.3,13.87702089]
[1751481500070,0.25633,2580.0,2579.4,0.55]
[1751481500277,0.6731,2581.5,2580.4,13.97356558]
[1751481500435,0.6731,2581.5,2580.4,14.02836815]
[1751481501042,0.6731,2581.5,2580.4,24.02836815]
[1751481501264,0.6731,2581.5,2580.8,3.8747565]
[1751481501453,0.6731,2581.5,2581.1,3.87429772]
[1751481501654,0.6731,2581.5,2581.2,12.02913894]
[1751481501835,0.6731,2581.9,2581.4,3.87378675]
[1751481502031,0.6731,2581.9,2581.5,8.154]
[1751481502234,11.331,2582.9,2581.5,8.154]
[1751481502235,0.6731,2582.3,2581.5,8.154]
[1751481502537,0.6731,2582.3,2581.5,12.02770994]
[1751481502733,0.6731,2582.3,2581.5,8.154]
[1751481502964,0.6731,2582.3,2581.6,10.161]
[1751481503167,0.19361554,2583.3,2581.9,3.87311669]
[1751481503168,10.6731,2583.1,2581.9,3.87311669]
[1751481503475,0.6731,2583.7,2582.9,3.87161717]
[1751481503639,0.20264007,2585.0,2582.8,0.7999]
[1751481503640,0.6731,2584.1,2583.1,10.0]
[1751481503833,0.6731,2584.1,2583.6,0.1928]
[1751481504033,0.6731,2584.1,2583.0,9.6091342]
[1751481504034,0.1928,2583.7,2583.5,10.352]
[1751481504266,0.6731,2584.1,2583.3,2.086]
[1751481504631,0.6731,2584.1,2583.3,10.369]
[1751481504833,30.0,2584.0,2583.0,9.319]
[1751481505147,10.6731,2583.5,2582.7,2.085]
[1751481505347,0.6731,2583.5,2582.7,2.085]
[1751481505957,9.9251052,2582.9,2580.9,3.87461738]
[1751481506171,10.0,2583.0,2580.8,0.7829]
[1751481506172,1.2231,2582.8,2581.5,3.87362882]
[1751481506360,1.2231,2582.8,2581.7,3.87332587]
[1751481506361,11.2231,2582.8,2581.7,3.87332587]
[1751481506558,0.6731,2582.8,2581.7,5.95838479]
[1751481506762,0.6731,2582.8,2581.7,5.95836828]
[1751481506943,0.6731,2582.8,2581.8,3.87318775]
[1751481507345,0.6731,2582.8,2581.9,10.389]
[1751481507746,0.6731,2582.8,2582.0,2.084]
[1751481508861,30.55,2582.7,2582.0,2.084]
[1751481509056,3.12231,2582.6,2581.7,2.084]
[1751481509266,30.0,2582.6,2581.7,2.084]
[1751481509468,0.6731,2582.8,2581.7,12.084]
[1751481509774,0.6731,2582.8,2581.8,3.87326671]
[1751481509944,0.6731,2582.8,2581.7,12.084]
[1751481510148,0.6731,2582.8,2581.7,4.50956828]
[1751481510344,0.6731,2582.8,2581.8,3.87326671]
[1751481510656,0.6731,2582.4,2581.9,2.084]
[1751481510860,0.6731,2582.4,2581.7,2.084]
[1751481511770,0.6731,2582.4,2581.8,3.87316631]
[1751481512181,0.6731,2582.4,2581.8,3.87312364]
[1751481512475,0.6731,2582.4,2581.7,2.084]
[1751481513058,0.55,2582.3,2581.1,13.97440531]
[1751481513380,0.55,2582.3,2581.2,2.084]
[1751481513886,1.12231,2582.2,2581.2,2.084]
[1751481514270,0.1936,2581.6,2581.2,2.084]
[1751481514778,0.1936,2581.8,2581.5,3.8736443]
[1751481514976,0.1936,2581.8,2581.4,3.87378791]
[1751481515572,0.1936,2581.8,2581.4,10.0]
[1751481515769,0.6731,2581.7,2581.4,2.084]
[1751481515964,0.1936,2581.6,2581.4,2.084]
[1751481516581,8.86,2582.6,2581.4,2.084]
[1751481516582,0.6731,2582.1,2581.4,2.084]
[1751481516786,0.1936,2582.2,2581.8,0.1936]
[1751481517585,0.6731,2582.5,2581.9,3.87306797]
[1751481517750,0.1936,2582.4,2582.0,2.083]
[1751481518158,0.1936,2582.2,2582.0,2.083]
[1751481520454,0.6731,2582.5,2582.0,2.083]
[1751481520655,0.6731,2582.5,2582.1,0.1936]
[1751481520859,0.6731,2582.5,2582.1,4.06632464]
[1751481521562,0.1936,2582.6,2582.1,0.1936]
[1751481522086,0.1936,2582.4,2582.1,2.083]
[1751481522585,0.1936,2582.4,2581.9,0.1936]
[1751481522755,0.6731,2582.3,2581.6,0.02]
[1751481522951,0.1936,2582.1,2581.7,2.2766]
[1751481523354,0.1936,2582.1,2581.8,3.87316502]
[1751481523583,0.1936,2582.1,2581.7,6.1499313]
[1751481523796,0.1936,2582.1,2581.7,2.2766]
[1751481523993,0.1936,2582.1,2581.7,6.14998235]
[1751481524183,0.1936,2582.1,2581.7,2.2766]
[1751481525059,0.1936,2582.1,2581.7,6.15000332]
[1751481525462,0.1936,2582.1,2581.7,2.2766]
[1751481525684,0.1936,2582.1,2581.7,0.1936]
[1751481525885,0.1936,2582.1,2581.6,0.02]
[1751481525886,0.1936,2581.7,2581.6,0.02]
[1751481526059,0.8667,2581.7,2581.6,0.02]
[1751481535299,1.95337,2581.7,2581.6,0.02]
[1751481536781,2.72338337,2581.7,2581.6,0.02]
[1751481536990,1.95337,2581.7,2581.6,0.02]
[1751481537192,2.72338337,2581.7,2581.6,0.02]
[1751481537391,36.37678674,2581.7,2581.6,0.02]
[1751481537617,3.27338337,2581.7,2581.6,0.02]
[1751481537815,13.27338337,2581.7,2581.6,0.02]
[1751481538134,3.27338337,2581.7,2581.6,0.02]
[1751481538337,2.50337,2581.7,2581.6,0.02]
[1751481538819,3.27345933,2581.7,2581.6,0.02]
[1751481539203,1.95337,2581.7,2581.6,0.02]
[1751481539439,0.8667,2581.7,2581.6,0.02]
[1751481540243,0.8667,2581.7,2581.1,10.103023]
[1751481540410,0.1936,2581.5,2581.1,10.103023]
[1751481541107,0.6731,2581.7,2581.2,2.105]
[1751481541309,0.6731,2581.7,2581.2,10.367]
[1751481541505,0.1936,2581.3,2581.2,10.367]
[1751481541844,0.1936,2581.3,2581.1,9.270123]
[1751481543824,0.1936,2581.3,2580.6,0.2136]
[1751481544036,0.1936,2580.9,2580.6,0.02]
[1751481544358,33.87491765,2580.7,2580.6,0.02]
[1751481544645,34.42491765,2580.7,2580.6,0.02]
[1751481544849,44.42491765,2580.7,2580.6,0.02]
[1751481545010,45.19544493,2580.7,2580.6,0.02]
[1751481545215,0.6731,2580.0,2579.2,0.7615]
[1751481545422,0.1936,2579.6,2579.3,10.376]
[1751481545643,13.87522096,2580.5,2579.3,10.376]
[1751481545644,1.44287031,2580.4,2579.3,10.376]
[1751481545824,1.44287031,2580.4,2579.5,0.1936]
[1751481545825,0.1936,2579.9,2579.5,0.1936]
[1751481546213,0.6731,2580.4,2579.3,10.376]
[1751481546413,0.1936,2580.1,2579.7,0.1936]
[1751481546644,0.1936,2580.1,2579.7,8.4686]
[1751481548525,0.1936,2579.9,2579.7,2.106]
[1751481548719,0.1936,2579.9,2579.2,10.7615]
[1751481549038,0.1936,2579.6,2579.3,20.375]
[1751481549210,0.1936,2579.6,2579.1,0.1936]
[1751481549412,3.87665398,2579.6,2579.1,2.106]
[1751481549610,0.1936,2579.2,2579.1,2.106]
[1751481550429,0.1936,2579.2,2579.1,5.98332154]
[1751481550746,0.6731,2579.7,2579.1,5.98332154]
[1751481550747,0.1936,2579.5,2579.1,2.2996]
[1751481550913,0.1936,2579.5,2579.2,10.384]
[1751481551244,0.1936,2579.5,2579.2,11.1526]
[1751481551414,0.1936,2579.5,2579.1,0.1936]
[1751481551620,0.6731,2579.5,2579.0,11.415]
[1751481551821,0.6731,2579.5,2579.0,2.106]
[1751481551822,0.1936,2579.2,2579.0,2.106]
[1751481552564,4.07078709,2579.2,2578.5,10.387]
[1751481552751,3.87687775,2579.4,2578.5,10.387]
[1751481552752,0.55,2579.0,2578.5,2.106]
[1751481553849,1.08017871,2579.1,2578.5,2.106]
[1751481554047,0.1936,2578.6,2578.5,2.106]
[1751481555281,0.6731,2579.1,2578.5,2.106]
[1751481555465,30.0,2579.9,2578.6,3.87792444]
[1751481555762,0.6731,2580.0,2578.5,12.106]
[1751481555763,0.6731,2580.0,2578.8,10.0]
[1751481555932,0.1936,2579.3,2578.9,3.87762224]
[1751481556132,0.6731,2580.0,2579.0,0.8251]
[1751481556363,0.1936,2579.5,2579.2,3.87711903]
[1751481556762,0.1936,2579.5,2579.0,1.0187]
[1751481556963,0.6731,2580.0,2579.2,3.87709117]
[1751481557267,0.1936,2579.6,2579.3,3.87699171]
[1751481557468,0.1936,2579.6,2579.4,3.87685516]
[1751481557779,0.1936,2579.6,2579.3,12.16098355]
[1751481557938,0.1936,2579.6,2579.3,8.284]
[1751481558139,0.1936,2579.6,2579.3,12.16095049]
[1751481559069,0.1936,2579.6,2579.3,8.284]
[1751481559433,0.1936,2579.6,2579.2,4.07071965]
[1751481559632,0.1936,2579.6,2579.3,8.283]
[1751481559834,0.1936,2579.6,2579.3,12.1600042]
[1751481560144,0.1936,2579.6,2579.4,3.87679531]
[1751481560350,0.1936,2579.6,2579.3,12.15991478]
[1751481560754,0.1936,2579.6,2579.3,8.283]
[1751481560968,10.55,2580.5,2579.4,1.05836]
[1751481560969,0.6731,2580.3,2579.4,1.05836]
[1751481561141,0.1936,2579.9,2579.5,0.1936]
[1751481563588,0.1936,2579.8,2579.3,0.1936]
[1751481564892,0.1936,2579.8,2579.3,4.8836]
[1751481565859,0.1936,2579.8,2579.3,13.1346]
[1751481566456,0.6731,2579.7,2579.3,13.1346]
[1751481566862,0.6731,2579.7,2579.3,13.1336]
[1751481567167,0.6731,2579.7,2579.3,4.8836]
[1751481567373,0.1936,2579.5,2579.3,4.69]
[1751481569558,0.6731,2579.7,2579.3,4.69]
[1751481569781,0.1936,2579.3,2578.9,2.098]
[1751481569982,0.1936,2579.1,2578.9,2.098]
[1751481570606,0.1936,2579.3,2579.0,0.8209]
[1751481570776,0.1936,2579.5,2579.1,3.87732154]
[1751481571106,0.6731,2579.7,2579.1,10.0]
[1751481571279,0.1936,2579.6,2579.2,4.07077121]
[1751481571592,0.1936,2579.6,2579.2,0.1936]
[1751481571789,0.6731,2579.7,2579.0,9.0799]
[1751481571790,0.6731,2579.7,2579.0,0.02]
[1751481571960,0.1936,2579.3,2579.0,0.02]
[1751481575504,0.6731,2579.7,2579.1,4.68883223]
[1751481575798,0.1936,2579.5,2579.2,3.8770799]
[1751481576007,0.1936,2579.5,2579.2,3.87710443]
[1751481576215,0.1936,2579.5,2579.3,5.75294707]
[1751481576504,0.1936,2579.8,2579.4,3.87687059]
[1751481576866,0.1936,2579.8,2579.4,3.87675534]
[1751481577072,0.1936,2579.8,2579.4,3.8767767]
[1751481577413,0.1936,2579.8,2579.3,10.5296]
[1751481577821,0.1936,2579.8,2579.4,3.87686926]
[1751481578198,0.1936,2579.8,2579.3,14.40656519]
[1751481578370,0.1936,2579.8,2579.3,10.5296]
[1751481578572,0.1936,2579.8,2579.3,14.4066088]
[1751481579923,0.1936,2579.8,2579.3,12.4391524]
[1751481580089,0.6731,2580.5,2579.4,10.0]
[1751481580291,0.1936,2580.1,2579.6,4.07016972]
[1751481580492,0.1936,2580.1,2579.4,10.0]
[1751481580493,0.6731,2580.5,2580.0,3.87587056]
[1751481580692,0.01,2580.6,2580.1,3.87572144]
[1751481580921,0.01,2580.6,2580.2,0.1936]
[1751481581231,0.01,2580.6,2580.3,0.7625]
[1751481581399,0.01,2580.6,2580.2,0.1936]
[1751481581599,0.01,2580.6,2580.3,8.231]
[1751481583102,0.01,2580.6,2580.2,0.1936]
[1751481583303,0.6731,2580.5,2579.7,0.7834]
[1751481583514,0.1936,2580.3,2579.9,22.10010559]
[1751481583715,0.1936,2580.3,2579.9,18.224]
[1751481583917,0.1936,2580.3,2579.9,22.10010344]
[1751481584416,0.1936,2580.3,2580.0,3.87595729]
[1751481584616,0.1936,2580.3,2579.9,18.224]
[1751481584831,0.1936,2580.3,2580.1,3.87572973]
[1751481585051,0.01,2580.6,2580.2,4.70156855]
[1751481585334,0.01,2580.6,2580.4,3.87529247]
[1751481585735,0.01,2580.6,2580.3,12.10043723]
[1751481585938,0.01,2580.6,2580.5,3.87521798]
[1751481587945,0.01,2580.6,2580.4,2.2916]
[1751481588136,0.01,2580.6,2580.2,0.8259]
[1751481588336,0.1936,2580.5,2580.2,14.19366172]
[1751481588536,0.1936,2580.5,2580.2,12.098]
[1751481588729,0.1936,2580.5,2580.2,10.318]
[1751481590240,0.1936,2580.5,2580.2,8.213]
[1751481591721,0.1936,2580.5,2580.2,12.08859791]
[1751481593461,0.1936,2580.5,2580.2,8.213]
[1751481594750,0.1936,2580.5,2580.1,0.1936]
[1751481595659,0.1936,2580.5,2580.1,0.2136]
[1751481596070,0.01,2580.6,2580.1,0.02]
[1751481596270,0.1936,2580.4,2580.1,8.216]
[1751481599274,0.1936,2580.4,2580.1,12.09174298]
[1751481599566,0.1936,2580.4,2580.1,8.216]
[1751481599954,0.1936,2580.4,2580.1,3.89577694]
[1751481600460,0.1936,2580.4,2580.1,0.02]
[1751481603162,0.1936,2580.4,2580.1,3.8957363]
[1751481607196,0.1936,2580.4,2580.1,0.02]
[1751481608359,0.1936,2580.4,2580.1,3.89580879]
[1751481608558,0.01,2580.6,2580.5,13.87521798]
[1751481608763,0.01,2580.6,2580.5,15.94621798]
[1751481608959,0.01,2580.6,2580.5,14.06881798]
[1751481609694,0.01,2580.6,2580.5,10.1936]
[1751481609876,0.01,2580.6,2580.5,14.06881798]
[1751481610075,0.01,2580.6,2580.5,17.35522998]
[1751481610795,0.01,2580.6,2580.5,18.13172998]
[1751481612176,0.01,2580.6,2580.5,22.82172998]
[1751481612496,0.01,2580.6,2580.5,30.98072998]
[1751481619899,0.01,2580.6,2580.5,31.00072998]
[1751481620117,0.01,2580.6,2580.5,22.84172998]
[1751481620303,0.01,2580.6,2580.5,28.395012]
[1751481621102,0.01,2580.6,2580.5,24.13522998]
[1751481621304,0.01,2580.6,2580.5,28.395012]
[1751481621476,0.01,2580.6,2580.5,18.190012]
[1751481621811,0.01,2580.6,2580.5,10.225]
[1751481622171,0.01,2580.6,2580.5,0.02]
[1751481622377,0.01,2580.6,2580.5,8.154]
[1751481623280,0.01,2580.6,2580.5,0.02]
[1751481623486,0.01,2580.6,2580.5,8.15]
[1751481623930,0.01,2580.6,2580.5,0.02]
[1751481624217,0.6831,2580.6,2580.5,0.02]
[1751481627009,1.2331,2580.6,2580.5,0.02]
[1751481627880,31.2331,2580.6,2580.5,0.02]
[1751481628182,5.24642424,2580.6,2580.5,0.02]
[1751481628510,1.2331,2580.6,2580.5,0.02]
[1751481629212,0.6831,2580.6,2580.5,0.02]
[1751481630283,0.01,2580.6,2580.5,0.02]
[1751481631092,0.01,2580.6,2580.5,3.89521798]
[1751481632806,0.01,2580.6,2580.5,0.02]
[1751481634605,1.2331,2580.6,2580.5,0.02]
[1751481634992,0.01,2580.6,2580.5,0.02]
[1751481638072,0.6831,2580.6,2580.5,0.02]
[1751481642956,1.2331,2580.6,2580.5,0.02]
[1751481643156,43.23216781,2580.6,2580.5,0.02]
[1751481643347,58.32776782,2580.6,2580.5,0.02]
[1751481644345,53.37042424,2580.6,2580.5,0.02]
[1751481644950,23.37042424,2580.6,2580.5,0.02]
[1751481645349,10.6831,2580.6,2580.5,0.02]
[1751481645784,11.2331,2580.6,2580.5,0.02]
[1751481646163,10.6831,2580.6,2580.5,0.02]
[1751481649991,11.2331,2580.6,2580.5,0.02]
[1751481651097,12.02008378,2580.6,2580.5,0.02]
[1751481651970,18.29754639,2580.6,2580.5,0.02]
[1751481652175,48.29754639,2580.6,2580.5,0.02]
[1751481652802,52.53847858,2580.6,2580.5,0.02]
[1751481653006,56.41354639,2580.6,2580.5,0.02]
[1751481653191,22.53847858,2580.6,2580.5,0.02]
[1751481653392,22.53847858,2580.6,2580.5,0.03051188]
[1751481653906,14.42247858,2580.6,2580.5,0.03051188]
[1751481654108,22.53947858,2580.6,2580.5,0.03051188]
[1751481654274,22.53847858,2580.6,2580.5,0.03051188]
[1751481657088,21.98847858,2580.6,2580.5,0.03051188]
[1751481657406,13.87247858,2580.6,2580.5,0.03051188]
[1751481657572,19.58408378,2580.6,2580.5,0.03051188]
[1751481657770,11.47008378,2580.6,2580.5,0.03051188]
[1751481658000,11.47054172,2580.6,2580.5,0.03051188]
[1751481658205,19.58154172,2580.6,2580.5,0.03051188]
[1751481658407,9.58154172,2580.6,2580.5,0.03051188]
[1751481658610,0.01,2580.6,2580.5,0.03051188]
[1751481668190,9.23173891,2580.6,2580.5,0.03051188]
[1751481668513,8.097,2580.6,2580.5,0.03051188]
[1751481670914,0.01,2580.6,2580.5,0.03051188]
[1751481671120,8.095,2580.6,2580.5,0.03051188]
[1751481671327,0.01,2580.6,2580.5,0.03051188]
[1751481671615,8.095,2580.6,2580.5,0.03051188]
[1751481671822,8.092,2580.6,2580.5,0.03051188]
[1751481672124,10.03505931,2580.6,2580.5,0.03051188]
[1751481672426,10.82365237,2580.6,2580.5,0.03051188]
[1751481673000,11.49675237,2580.6,2580.5,0.03051188]
[1751481673200,3.41475237,2580.6,2580.5,0.03051188]
[1751481673510,10.70415931,2580.6,2580.5,0.03051188]
[1751481673698,11.49324498,2580.6,2580.5,0.03051188]
[1751481674099,25.91831279,2580.6,2580.5,0.03051188]
[1751481674400,22.043365,2580.6,2580.5,0.03051188]
[1751481674600,25.91843281,2580.6,2580.5,0.03051188]
[1751481675841,22.043365,2580.6,2580.5,0.03051188]
[1751481676435,25.91843281,2580.6,2580.5,0.03051188]
[1751481677039,22.043365,2580.6,2580.5,0.03051188]
[1751481678042,13.965365,2580.6,2580.5,0.03051188]
[1751481678509,3.415365,2580.6,2580.5,0.03051188]
[1751481678710,8.078,2580.6,2580.5,0.03051188]
[1751481680011,0.01,2580.6,2580.5,0.03051188]
[1751481680212,8.08,2580.6,2580.5,0.03051188]
[1751481681736,8.63,2580.6,2580.5,0.03051188]
[1751481681931,22.50506781,2580.6,2580.5,0.03051188]
[1751481682130,56.29680085,2580.6,2580.5,0.03051188]
[1751481683552,52.42073304,2580.6,2580.5,0.03051188]
[1751481683846,22.42073304,2580.6,2580.5,0.03051188]
[1751481684051,22.41773304,2580.6,2580.5,0.03051188]
[1751481686326,14.35173304,2580.6,2580.5,0.03051188]
[1751481686554,22.41373304,2580.6,2580.5,0.03051188]
[1751481687128,14.35173304,2580.6,2580.5,0.03051188]
[1751481687460,22.41173304,2580.6,2580.5,0.03051188]
[1751481688876,22.41073304,2580.6,2580.5,0.03051188]
[1751481689077,21.73763304,2580.6,2580.5,0.03051188]
[1751481690181,13.67863304,2580.6,2580.5,0.03051188]
[1751481690480,21.73563304,2580.6,2580.5,0.03051188]
[1751481691048,0.79920569,2580.6,2580.5,0.03051188]
[1751481691244,8.064,2580.6,2580.5,0.03051188]
[1751481691879,0.01,2580.6,2580.5,0.03051188]
[1751481692047,8.064,2580.6,2580.5,0.03051188]
[1751481693882,0.01,2580.6,2580.5,0.03051188]
[1751481694108,8.064,2580.6,2580.5,0.03051188]
[1751481699913,0.01,2580.6,2580.5,0.03051188]
[1751481700209,8.063,2580.6,2580.5,0.03051188]
[1751481700408,0.01,2580.6,2580.5,0.03051188]
[1751481700894,8.063,2580.6,2580.5,0.03051188]
[1751481701294,0.01,2580.6,2580.5,0.03051188]
[1751481701605,0.01,2580.6,2580.5,9.24052686]
[1751481701807,0.01,2580.6,2580.5,14.62823126]
[1751481702687,0.01,2580.6,2580.5,10.75301328]
[1751481703019,0.01,2580.6,2580.5,12.76101328]
[1751481703222,0.01,2580.6,2580.5,16.63623126]
[1751481703719,0.01,2580.6,2580.5,0.82151188]
[1751481708499,0.01,2580.6,2580.5,0.03051188]
[1751481720058,0.01,2580.6,2580.5,0.83931188]
[1751481720418,0.01,2580.6,2580.5,4.71452986]
[1751481720652,0.01,2580.6,2580.5,4.90812986]
[1751481720951,0.01,2581.7,2581.0,3.87443158]
[1751481721132,0.1936,2581.3,2581.1,2.8129]
[1751481722930,0.1936,2581.3,2581.1,0.8089]
[1751481723756,0.2036,2581.3,2581.1,0.8089]
[1751481725058,0.2036,2581.3,2581.1,0.65115983]
[1751481725266,0.2036,2581.3,2581.1,0.91667581]
[1751481725678,0.2036,2581.3,2581.1,0.26551598]
[1751481725879,0.01,2581.3,2581.2,12.47627075]
[1751481727972,0.01,2581.3,2581.2,17.18498932]
[1751481728284,0.01,2581.3,2581.2,30.88466882]
[1751481728784,0.01,2581.7,2581.6,14.63586678]
[1751481728951,0.01,2583.1,2581.6,27.94668905]
[1751481729151,0.01,2583.1,2582.3,0.7834]
[1751481729355,0.01,2583.1,2582.5,0.7834]
[1751481730162,0.01,2583.1,2582.5,4.65552857]
[1751481730487,0.01,2583.1,2582.5,0.7834]
[1751481731278,0.01,2583.1,2582.5,4.65561471]
[1751481731591,0.01,2583.1,2582.5,0.7834]
[1751481731796,0.01,2583.1,2582.6,1.22244622]
[1751481732360,0.8174,2583.1,2582.6,2.003]
[1751481732566,0.8174,2583.1,2582.3,2.003]
[1751481732790,10.8174,2583.1,2582.3,2.003]
[1751481732994,0.01,2583.1,2582.8,13.11722227]
[1751481733292,0.01,2583.1,2582.9,12.8319]
[1751481733495,0.01,2583.1,2582.9,2.8319]
[1751481734162,0.01,2583.1,2582.9,0.8289]
[1751481734562,0.01,2583.1,2583.0,3.87146728]
[1751481734795,0.005,2584.3,2583.7,3.87041839]
[1751481734997,0.005,2584.3,2583.7,12.7595]
[1751481735197,0.005,2584.3,2583.7,16.54211958]
[1751481735578,0.005,2584.3,2583.7,20.41253797]
[1751481736670,0.005,2584.3,2583.7,20.96253797]
[1751481736881,0.005,2584.3,2583.7,24.63111958]
[1751481737469,0.005,2584.3,2583.7,14.64311958]
[1751481737674,0.005,2584.3,2583.7,10.8605]
[1751481738093,0.005,2584.3,2583.7,2.7585]
[1751481738303,0.555,2584.3,2583.5,2.002]
[1751481738474,4.41988324,2584.1,2583.5,2.002]
[1751481739177,0.55,2584.1,2583.5,2.002]
[1751481739397,0.55,2584.2,2583.5,2.002]
[1751481739570,4.62608946,2583.8,2583.1,0.8289]
[1751481739769,0.1928,2583.3,2583.0,9.308]
[1751481739975,0.1928,2583.1,2583.0,11.31]
[1751481740913,0.1928,2583.1,2583.0,9.308]
[1751481741080,0.1928,2583.1,2582.7,2.7578]
[1751481741394,0.1928,2582.9,2582.7,2.7578]
[1751481741596,0.1928,2582.9,2582.7,3.84428]
[1751481741916,0.1928,2582.9,2582.7,3.08848]
[1751481742073,0.1928,2582.9,2582.5,10.108]
[1751481745370,0.1928,2582.9,2582.5,13.98021554]
[1751481745567,0.1928,2582.9,2582.5,10.108]
[1751481745830,0.1928,2582.9,2582.6,1.52739127]
[1751481747527,0.7597,2583.6,2582.6,1.52739127]
[1751481747687,0.1928,2583.2,2582.8,0.1928]
[1751481747869,0.1928,2583.2,2582.8,8.2878]
[1751481748094,0.1928,2583.1,2582.7,10.12]
[1751481748597,3.87089189,2583.4,2582.7,10.12]
[1751481748787,3.87089189,2583.4,2582.5,0.02]
[1751481748788,0.1928,2582.8,2582.5,0.02]
[1751481749006,0.1936,2582.6,2582.5,0.02]
[1751481750224,4.6156669,2582.6,2582.5,0.02]
[1751481750600,5.4270669,2582.6,2582.5,0.02]
[1751481750798,7.35696539,2582.6,2582.5,0.02]
[1751481751695,5.4270669,2582.6,2582.5,0.02]
[1751481752807,15.4270669,2582.6,2582.5,0.02]
[1751481753048,45.4270669,2582.6,2582.5,0.02]
[1751481753399,53.5180669,2582.6,2582.5,0.02]
[1751481753595,54.28708103,2582.6,2582.5,0.02]
[1751481753921,58.30040527,2582.6,2582.5,0.02]
[1751481754092,57.53139114,2582.6,2582.5,0.02]
[1751481754296,58.30067818,2582.6,2582.5,0.02]
[1751481755635,24.42861128,2582.6,2582.5,0.02]
[1751481755800,53.65932424,2582.6,2582.5,0.02]
[1751481756196,57.53139114,2582.6,2582.5,0.02]
[1751481756395,49.44039114,2582.6,2582.5,0.02]
[1751481756630,57.52439114,2582.6,2582.5,0.02]
[1751481756930,54.42178693,2582.6,2582.5,0.02]
[1751481757091,53.65232424,2582.6,2582.5,0.02]
[1751481757294,58.2938659,2582.6,2582.5,0.02]
[1751481758028,58.29240546,2582.6,2582.5,0.02]
[1751481759037,71.40962773,2582.6,2582.5,0.02]
[1751481759334,15.23676671,2582.2,2582.1,0.02]
[1751481759511,53.31476671,2582.2,2582.1,0.02]
[1751481760129,54.08260854,2582.2,2582.1,0.02]
[1751481760430,50.20994183,2582.2,2582.1,0.02]
[1751481760735,50.20953213,2582.2,2582.1,0.02]
[1751481760937,51.28550213,2582.2,2582.1,0.02]
[1751481761232,50.51807,2582.2,2582.1,0.02]
[1751481761619,54.39073671,2582.2,2582.1,0.02]
[1751481764325,67.50795898,2582.2,2582.1,0.02]
[1751481764522,37.50795898,2582.2,2582.1,0.02]
[1751481764832,67.50795898,2582.2,2582.1,0.02]
[1751481765358,68.27491688,2582.2,2582.1,0.02]
[1751481765525,38.27491688,2582.2,2582.1,0.02]
[1751481765713,68.27491688,2582.2,2582.1,0.02]
[1751481767442,72.35891688,2582.2,2582.1,0.02]
[1751481769914,46.52969461,2582.2,2582.1,0.02]
[1751481770125,54.58669461,2582.2,2582.1,0.02]
[1751481770328,55.13669461,2582.2,2582.1,0.02]
[1751481770514,54.58669461,2582.2,2582.1,0.02]
[1751481770944,45.13969461,2582.2,2582.1,0.02]
[1751481771360,55.13969461,2582.2,2582.1,0.02]
[1751481771518,47.07969461,2582.2,2582.1,0.02]
[1751481771718,50.7220279,2582.2,2582.1,0.02]
[1751481771912,54.59469461,2582.2,2582.1,0.02]
[1751481772138,55.14469461,2582.2,2582.1,0.02]
[1751481773250,25.14469461,2582.2,2582.1,0.02]
[1751481773550,55.14469461,2582.2,2582.1,0.02]
[1751481775126,55.14064281,2582.2,2582.1,0.02]